fUSD/lending_fUSD_20240815
["ID","MTS","AMOUNT","RATE_DAILY","PERIOD"]
[335017647,1723744912162,500.0,8.281e-05,2]
[335017648,1723744912495,500.0,8.281e-05,2]
[335017649,1723744912845,500.0,8.281e-05,2]
[335017650,1723744913743,500.0,8.281e-05,2]
[335017651,1723744914057,500.0,8.281e-05,2]
[335017652,1723744914417,500.0,8.281e-05,2]
[335017653,1723744914743,500.0,8.281e-05,2]
[335017654,1723744915088,500.0,8.281e-05,2]
[335017655,1723744915410,500.0,8.281e-05,2]
[335017656,1723744915825,500.0,8.281e-05,2]
[335017657,1723744916091,500.0,8.281e-05,2]
[335017658,1723744916428,512.0,8.281e-05,2]
[335017659,1723744938907,155.0,8.281e-05,2]
[335017660,1723744952443,378.79478689,8.281e-05,2]
[335017661,1723744999880,184.52,7.856e-05,2]
[335017662,1723745004291,291.56155099,8.281e-05,2]
[335017664,1723745012685,159.09255227,8.281e-05,2]
[335017666,1723745036722,948.29791596,9.943e-05,2]
[335017667,1723745065979,1260.00879078,8.281e-05,2]
[335017668,1723745089277,291.65836493,9.943e-05,2]
[335017669,1723745110751,159.09255227,9.943e-05,2]
[335017670,1723745119292,291.65836493,9.943e-05,2]
[335017671,1723745151562,436.95,9.955e-05,2]
[335017703,1723745167472,250.0,9.968e-05,2]
[335017704,1723745222180,159.09255227,9.955e-05,2]
[335017705,1723745225663,155.23,8.219e-05,2]
[335017706,1723745234066,490.34,8.264e-05,2]
[335017710,1723745260548,1554.98,9.801e-05,2]
[335017711,1723745295286,244.63475139,9.801e-05,2]
[335017712,1723745316245,543.8866,9.918e-05,2]
[335017713,1723745319691,159.09255227,9.801e-05,2]
[335017740,1723745432744,-925.07724057,9.999e-05,2]
[335017741,1723745432756,-1460.44670797,9.999e-05,2]
[335017742,1723745432766,-550.0,0.0001,2]
[335017743,1723745432775,-124.55732925,0.00010018,2]
[335017744,1723745432787,-6646.53596774,0.00010018,2]
[335017745,1723745432875,-1502.46276642,0.00010018,2]
[335017746,1723745432887,-15626.44393659,0.00010018,2]
[335017747,1723745432897,-304.4120071,0.00010026,2]
[335017748,1723745432907,-7840.50751979,0.00010037,2]
[335017749,1723745432921,-155.0,0.00010097,2]
[335017750,1723745432938,-200.0,0.000102,3]
[335017751,1723745432947,-150.0,0.00010212,2]
[335017752,1723745432957,-1000.0,0.00010248,2]
[335017753,1723745432967,-500.0,0.000103,3]
[335017754,1723745432977,-499.99,0.000104,2]
[335017755,1723745432987,-800.0,0.000104,3]
[335017756,1723745432997,-1100.0,0.000105,3]
[335017757,1723745433010,-490.34,0.00010528,2]
[335017758,1723745433019,-309.38389104,0.00010566,2]
[335017759,1723745433029,-694.11,0.000106,2]
[335017760,1723745433039,-299.99,0.000106,2]
[335017761,1723745433049,-1400.0,0.000106,3]
[335017762,1723745433059,-200.0,0.000107,3]
[335017763,1723745433069,-1370.54779908,0.000107,2]
[335017764,1723745433079,-150.0,0.00010796,2]
[335017765,1723745433089,-30144.8793,0.00010797,2]
[335017766,1723745433098,-3106.9302,0.000108,2]
[335017767,1723745433108,-1563.2312,0.000108,2]
[335017768,1723745433117,-71948.07,0.000108,2]
[335017769,1723745433129,-200.0,0.000108,3]
[335017770,1723745433138,-2500.0,0.000109,2]
[335017771,1723745433148,-773.543,0.000109,2]
[335017772,1723745433157,-1794.52630816,0.000109,2]
[335017773,1723745433169,-13227.34600926,0.000109,2]
[335017774,1723745433193,-6576.80729721,0.000109,2]
[335017775,1723745433204,-1387.53444088,0.000109,2]
[335017778,1723745438256,-760.3907085,0.00010009,2]
[335017779,1723745438266,-32776.18367333,0.000109,2]
[335017780,1723745438278,-2575.55880004,0.000109,2]
[335017781,1723745438409,-1151.56782597,0.000109,2]
[335017782,1723745438575,-2103.92511767,0.000109,2]
[335017783,1723745438586,-1005.69637012,0.000109,2]
[335017784,1723745438722,-5115.40000004,0.000109,2]
[335017785,1723745438733,-584.59799406,0.000109,2]
[335017839,1723745439751,-3079.4616,0.000109,2]
[335017841,1723745440488,-26641.17337603,0.000109,2]
[335017842,1723745440500,-146980.22118723,0.000109,2]
[335017843,1723745440509,-2500.0,0.000109,2]
[335017844,1723745440518,-1132.866,0.000109,2]
[335017845,1723745440527,-200.0,0.000109,3]
[335017846,1723745440536,-873.0849666,0.000109,2]
[335017847,1723745440546,-949.25745,0.0001094,2]
[335017848,1723745440554,-949.25746,0.0001095,2]
[335017849,1723745440563,-1500.0,0.00010959,2]
[335017850,1723745440573,-418.72,0.00010959,2]
[335017851,1723745440583,-150.0,0.00010959,2]
[335017852,1723745440592,-250.0,0.00010959,2]
[335017853,1723745440601,-949.25746,0.0001097,2]
[335017854,1723745440610,-949.25746,0.0001099,2]
[335017855,1723745440619,-76097.84704108,0.00011,2]
[335017856,1723745440632,-12057.62902815,0.00011,2]
[335017857,1723745440641,-102263.85121399,0.00011,2]
[335017858,1723745440653,-342.578,0.00011,2]
[335017859,1723745440664,-29283.50000001,0.00011,2]
[335017860,1723745440720,-24912.89410395,0.00011,2]
[335017862,1723745440732,-49519.01691756,0.00011,2]
[335017865,1723745440747,-260.80411223,0.00011,2]
[335017916,1723745443581,-632.93440001,0.000108,2]
[335017918,1723745443595,-3949.10195934,0.000108,2]
[335017920,1723745445429,-14014.37339057,0.000108,2]
[335017921,1723745445446,-5848.16568192,0.000108,2]
[335017922,1723745445460,-5451.67376816,0.000108,2]
[335017923,1723745445469,-171.18868684,0.00011,2]
[335017925,1723745445483,-1494.32694018,0.00011,2]
[335017927,1723745445494,-5526.59121999,0.00011,2]
[335017929,1723745445505,-586.0,0.00011,2]
[335017931,1723745445516,-5590.10966965,0.00011,2]
[335017973,1723745445930,-335.76719418,0.00011,2]
[335017983,1723745446953,-30840.17367564,0.00011,2]
[335017984,1723745446969,-100742.04275856,0.00011,2]
[335017985,1723745446982,-1135.03670988,0.00011,2]
[335017986,1723745446994,-2932.47955,0.00011,2]
[335017987,1723745447009,-2973.98931286,0.00011,2]
[335017988,1723745447022,-1342.83255914,0.00011,2]
[335017989,1723745447040,-573.84156368,0.00011,2]
[335017990,1723745447052,-341.13686896,0.00011,2]
[335017992,1723745504695,159.9573306,9.801e-05,2]
[335017993,1723745521479,-760.3907085,9.999e-05,2]
[335017994,1723745521577,-232.52151648,0.00010008,2]
[335017995,1723745521968,-622.47848352,0.00010008,2]
[335017996,1723745577205,715.48549209,0.00010008,2]
[335017997,1723745704855,155.23,8.219e-05,2]
[335017998,1723745708834,640.73141312,9.989e-05,2]
[335018000,1723745730142,7544.65,9.962e-05,2]
[335018001,1723745748970,200.0,9.951e-05,2]
[335018002,1723745759983,768.12,9.951e-05,2]
[335018003,1723745774096,542.68,8.219e-05,2]
[335018004,1723745798376,2808.39126043,9.951e-05,2]
[335018005,1723745813612,1852.42,9.866e-05,2]
[335018006,1723745821435,437.15,9.866e-05,2]
[335018009,1723746009342,23900.0,9.867e-05,2]
[335018012,1723746033061,500.0,9.865e-05,2]
[335018021,1723746161998,446.11,9.861e-05,2]
[335018023,1723746221288,250.0,9.859e-05,2]
[335018024,1723746238095,165.49,9.859e-05,2]
[335018025,1723746255804,160.18,9.86e-05,2]
[335018026,1723746259183,150.0,9.86e-05,2]
[335018027,1723746270182,483.95,9.86e-05,2]
[335018142,1723746389857,218.57,9.859e-05,2]
[335018143,1723746390504,559.36,8.219e-05,2]
[335018145,1723746521010,202.71899249,9.962e-05,2]
[335018147,1723746553845,-359.26858688,9.989e-05,2]
[335018148,1723746553874,-300.0,9.999e-05,2]
[335018149,1723746553903,-300.0,9.999e-05,2]
[335018150,1723746553930,-571.42598314,0.0001,2]
[335018151,1723746553957,-894.657054,0.0001,2]
[335018152,1723746553989,-2425.35162402,0.0001,2]
[335018153,1723746554021,-2425.35162402,0.0001,2]
[335018154,1723746554060,-2425.35162402,0.0001,2]
[335018155,1723746554092,-2425.35162402,0.0001,2]
[335018156,1723746554126,-2425.35162402,0.0001,2]
[335018157,1723746554166,-2425.35162402,0.0001,2]
[335018158,1723746554207,-2425.35162402,0.0001,2]
[335018159,1723746554240,-264.76268788,0.0001,2]
[335018160,1723746554285,-2425.35162402,0.0001,2]
[335018161,1723746554327,-2425.35162402,0.0001,2]
[335018162,1723746554368,-2425.35162402,0.0001,2]
[335018163,1723746554400,-2425.35162402,0.0001,2]
[335018164,1723746554622,-2425.35162402,0.0001,2]
[335018165,1723746579177,-193.62055248,0.0001,2]
[335018166,1723746579205,-162.76853278,0.00010008,2]
[335018167,1723746579236,-147.83432396,0.00010008,2]
[335018192,1723746632536,-22.71147445,0.00010008,2]
[335018194,1723746632546,-310.0,0.00010047,2]
[335018196,1723746632556,-559.36,0.00010468,2]
[335018197,1723746632566,-760.3907085,0.00010566,2]
[335018198,1723746632576,-150.0,0.00010678,2]
[335018199,1723746632585,-1243.4245,0.000107,2]
[335018200,1723746632594,-150.0,0.000107,2]
[335018201,1723746632604,-150.0,0.000107,2]
[335018202,1723746632614,-150.0,0.00010703,2]
[335018203,1723746632623,-150.0,0.00010707,2]
[335018204,1723746632633,-499.99,0.00010707,2]
[335018205,1723746632642,-155.0,0.00010713,2]
[335018206,1723746632651,-155.0,0.00010713,2]
[335018207,1723746632661,-150.0,0.00010721,2]
[335018208,1723746632670,-167.60641119,0.00010724,2]
[335018209,1723746632680,-150.0,0.00010727,2]
[335018210,1723746632690,-150.0,0.00010732,2]
[335018211,1723746632700,-150.0,0.00010733,2]
[335018212,1723746632709,-150.0,0.00010745,2]
[335018213,1723746632718,-150.0,0.00010746,2]
[335018214,1723746632728,-150.0,0.00010747,2]
[335018215,1723746632737,-150.0,0.00010759,2]
[335018216,1723746632746,-150.0,0.00010759,2]
[335018217,1723746632756,-150.0,0.0001076,2]
[335018218,1723746632765,-150.0,0.0001076,2]
[335018219,1723746632774,-150.0,0.0001076,2]
[335018220,1723746632783,-150.0,0.00010774,2]
[335018221,1723746632793,-150.0,0.0001078,2]
[335018222,1723746632803,-150.0,0.00010782,2]
[335018223,1723746632812,-150.0,0.00010784,2]
[335018224,1723746632822,-150.0,0.00010786,2]
[335018225,1723746632832,-150.0,0.00010786,2]
[335018226,1723746632841,-150.0,0.00010791,2]
[335018227,1723746632850,-150.0,0.00010796,2]
[335018228,1723746632859,-12059.04368294,0.000108,2]
[335018229,1723746632872,-252.93585301,0.000108,2]
[335018230,1723746632883,-2358.18069036,0.000108,2]
[335018231,1723746632895,-1850.16556704,0.000108,2]
[335018232,1723746632906,-12239.784,0.000108,2]
[335018246,1723746638368,-916.50168511,0.000108,2]
[335018247,1723746638380,-1840.53212154,0.000108,2]
[335018248,1723746638390,-1506.54200823,0.000108,2]
[335018249,1723746638401,-488.29864495,0.000108,2]
[335018250,1723746638417,-70.13294682,0.000108,2]
[335018251,1723746638427,-477.6679,0.000108,2]
[335018252,1723746638437,-897.97780561,0.000108,2]
[335018254,1723746638449,-10734.30549439,0.000108,2]
[335018256,1723746638458,-2409.3158,0.000108,2]
[335018258,1723746638468,-5649.97944359,0.000108,2]
[335018260,1723746638478,-950.2599,0.00010802,2]
[335018262,1723746638488,-150.0,0.00010824,2]
[335018264,1723746638498,-150.0,0.00010843,2]
[335018266,1723746638507,-150.0,0.00010844,2]
[335018268,1723746638516,-150.0,0.00010852,2]
[335018270,1723746638526,-150.0,0.00010854,2]
[335018272,1723746638536,-150.0,0.00010857,2]
[335018273,1723746638545,-150.0,0.00010869,2]
[335018275,1723746638555,-150.0,0.00010876,2]
[335018277,1723746638564,-150.0,0.0001088,2]
[335018279,1723746638574,-1592.06824958,0.0001089,2]
[335018281,1723746638584,-913.37928,0.0001089,2]
[335018283,1723746638593,-1161.1464,0.0001089,2]
[335018285,1723746638603,-258.97899847,0.00010899,2]
[335018290,1723746638612,-335.4322,0.000109,2]
[335018293,1723746638624,-87054.4016,0.000109,2]
[335018296,1723746638633,-189.1551793,0.000109,2]
[335018299,1723746638646,-11498.0,0.000109,5]
[335018302,1723746638655,-150.0,0.00010902,2]
[335018304,1723746638665,-150.0,0.00010902,2]
[335018306,1723746638675,-150.0,0.00010904,2]
[335018307,1723746638685,-150.0,0.00010916,2]
[335018308,1723746638695,-150.0,0.00010916,2]
[335018309,1723746638704,-150.0,0.00010917,2]
[335018310,1723746638714,-150.0,0.0001092,2]
[335018311,1723746638723,-150.0,0.00010937,2]
[335018312,1723746638734,-150.0,0.00010949,2]
[335018313,1723746638743,-526.89163581,0.00010949,2]
[335018314,1723746638753,-526.89163581,0.00010949,2]
[335018315,1723746638762,-1500.0,0.00010959,2]
[335018316,1723746638772,-250.0,0.00010959,2]
[335018317,1723746638782,-309.38389104,0.00010979,2]
[335018318,1723746638791,-8153.77555309,0.0001098,2]
[335018319,1723746638802,-8173.52989368,0.0001098,2]
[335018320,1723746638813,-16079.02632499,0.0001098,2]
[335018321,1723746638825,-29019.9015,0.0001098,2]
[335018322,1723746638837,-377.86782155,0.0001098,2]
[335018323,1723746638848,-482.99531256,0.0001098,2]
[335018324,1723746638859,-1042.5,0.0001098,2]
[335018325,1723746638889,-13003.8,0.0001098,2]
[335018326,1723746638901,-1710.00000005,0.0001098,2]
[335018327,1723746638913,-12511.39253041,0.0001098,2]
[335018328,1723746638924,-422.93455817,0.0001098,2]
[335018329,1723746638934,-265.69,0.0001098,2]
[335018330,1723746638953,-322.82250005,0.0001098,2]
[335018331,1723746638966,-339.1733676,0.0001098,2]
[335018332,1723746638977,-9005.59263688,0.0001098,2]
[335018333,1723746638990,-43702.86729044,0.0001098,2]
[335018334,1723746639002,-58000.0,0.0001098,2]
[335018335,1723746639013,-5138.05560002,0.0001098,2]
[335018336,1723746639025,-58000.00000002,0.0001098,2]
[335018337,1723746639036,-13085.5,0.0001098,2]
[335018338,1723746639051,-279.8448612,0.0001098,2]
[335018339,1723746639064,-36689.96203575,0.0001098,2]
[335018340,1723746639074,-47482.33610431,0.0001099,3]
[335018378,1723746639894,-552.33090042,0.0001099,3]
[335018380,1723746639930,-369.0,0.0001099,3]
[335018381,1723746639941,-682.60523184,0.0001099,3]
[335018382,1723746639952,-416.87191406,0.0001099,3]
[335018383,1723746642522,-500.0,0.00010989,2]
[335018384,1723746642534,-500.0,0.00010989,2]
[335018385,1723746642544,-420.12623926,0.00010989,2]
[335018386,1723746642554,-500.0,0.00010989,2]
[335018387,1723746642563,-500.0,0.00010989,2]
[335018389,1723746642574,-500.0,0.00010989,2]
[335018391,1723746642584,-500.0,0.00010989,2]
[335018393,1723746642594,-500.0,0.00010989,2]
[335018395,1723746642604,-500.0,0.00010989,2]
[335018396,1723746642615,-24569.21750196,0.0001099,3]
[335018419,1723746643553,-474.621015,0.0001099,3]
[335018422,1723746643569,-58025.0,0.0001099,3]
[335018425,1723746643581,-6270.40000006,0.0001099,3]
[335018428,1723746643593,-17425.80000001,0.0001099,3]
[335018433,1723746643605,-841481.45704922,0.0001099,3]
[335018441,1723746643634,-356.19588052,0.0001099,3]
[335018445,1723746643646,-2439.14814662,0.0001099,3]
[335018449,1723746643657,-667.4499999,0.0001099,3]
[335018453,1723746643669,-265.321644,0.0001099,3]
[335018457,1723746643680,-1486.46443087,0.0001099,3]
[335018461,1723746643692,-2256.33146258,0.0001099,3]
[335018467,1723746643704,-348.33,0.0001099,3]
[335018471,1723746643715,-3895.58825898,0.0001099,3]
[335018475,1723746643727,-579.35,0.0001099,3]
[335018479,1723746643741,-6349.60326,0.0001099,3]
[335018557,1723746644467,-705.64297035,0.0001099,3]
[335018559,1723746644479,-454.54387189,0.0001099,3]
[335018561,1723746644492,-1267.53629767,0.0001099,3]
[335018563,1723746644503,-571.48088153,0.0001099,3]
[335018566,1723746644518,-3162.86236937,0.0001099,3]
[335018568,1723746644529,-1668.02297108,0.0001099,3]
[335018570,1723746644541,-530.05992504,0.0001099,3]
[335018572,1723746644552,-8739.00278943,0.0001099,3]
[335018574,1723746644563,-87634.18585287,0.0001099,3]
[335018576,1723746644575,-5958.007393,0.0001099,3]
[335018579,1723746644587,-303.9419,0.0001099,3]
[335018581,1723746644599,-544.7642207,0.0001099,3]
[335018583,1723746644611,-1913.60066779,0.0001099,3]
[335018585,1723746644622,-7164.35167377,0.0001099,3]
[335018587,1723746644633,-9394.98905518,0.0001099,3]
[335018720,1723746645895,-155.0,0.00010699,2]
[335018722,1723746645904,-258.97899847,0.0001089,2]
[335018724,1723746645913,-526.89163581,0.00010899,2]
[335018726,1723746645923,-407.37144464,0.0001099,3]
[335018730,1723746645944,-150.0,0.00010811,2]
[335018732,1723746645953,-31159.93387849,0.0001099,3]
[335018734,1723746645964,-916.60793206,0.0001099,3]
[335018736,1723746645975,-264.34288943,0.0001099,3]
[335018738,1723746645986,-5269.13743549,0.0001099,3]
[335018759,1723746646182,-1246.58900404,0.0001099,3]
[335018761,1723746646194,-332.78,0.0001099,3]
[335018763,1723746646205,-18827.76902264,0.0001099,3]
[335018764,1723746646217,-6665.99601254,0.0001099,3]
[335018765,1723746646228,-1448.86821999,0.0001099,3]
[335018766,1723746646242,-638.075,0.0001099,3]
[335018767,1723746646254,-2800.21661438,0.0001099,3]
[335018774,1723746646336,-215.26072699,0.0001076,2]
[335018776,1723746646346,-14588.4442944,0.0001099,3]
[335018778,1723746646357,-5782.3416,0.0001099,3]
[335018780,1723746646370,-508.5,0.0001099,3]
[335018782,1723746646382,-11055.24207132,0.0001099,3]
[335018785,1723746646393,-61051.04631385,0.0001099,3]
[335018787,1723746646405,-2733.38035353,0.0001099,3]
[335018789,1723746646417,-295.97833668,0.0001099,3]
[335018791,1723746646429,-886.72772222,0.0001099,3]
[335018793,1723746646440,-1325.98466,0.0001099,3]
[335020430,1723746721580,-501.04289069,0.00010023,2]
[335020431,1723746721622,-418.73710931,0.00010023,2]
[335020432,1723746721655,-250.0,0.00010071,2]
[335020434,1723746747475,775.29,9.84e-05,2]
[335020438,1723746774326,336.82,9.919e-05,2]
[335020439,1723746777407,153.33,9.84e-05,2]
[335020440,1723746781338,30.04493388,9.926e-05,2]
[335020441,1723746781371,873.84506612,9.926e-05,2]
[335020442,1723746806654,833.45528499,9.895e-05,2]
[335020443,1723746806685,1569.23071696,9.895e-05,2]
[335020444,1723746806717,1597.48532501,9.895e-05,2]
[335020445,1723746806747,1836.49172426,9.895e-05,2]
[335020446,1723746806777,1640.60452618,9.895e-05,2]
[335020447,1723746806806,1738.77926494,9.895e-05,2]
[335020448,1723746806840,1585.12085174,9.895e-05,2]
[335020449,1723746806870,1713.80141052,9.895e-05,2]
[335020450,1723746806902,1610.80386895,9.895e-05,2]
[335020451,1723746807220,35209.53702645,9.895e-05,2]
[335020452,1723746858278,600.7,9.876e-05,2]
[335020453,1723746876292,10000.0,9.84e-05,2]
[335020454,1723746893028,521.06,9.84e-05,2]
[335020455,1723746939090,790.44,8.219e-05,2]
[335020459,1723747026857,777.07635918,8e-05,2]
[335020460,1723747055982,179.48,9.765e-05,2]
[335020461,1723747081261,171.79,9.76e-05,2]
[335020462,1723747112176,279.35,9.775e-05,2]
[335020463,1723747123501,23900.0,9.899e-05,2]
[335020464,1723747253990,250.0,9.771e-05,2]
[335020465,1723747270797,276.88,9.755e-05,2]
[335020470,1723747339562,278.66,9.779e-05,2]
[335020471,1723747354366,300.35,9.773e-05,2]
[335020472,1723747358048,500.0,9.755e-05,2]
[335020473,1723747358367,500.0,9.755e-05,2]
[335020474,1723747358763,500.0,9.755e-05,2]
[335020475,1723747359109,500.0,9.755e-05,2]
[335020476,1723747359447,694.0,9.755e-05,2]
[335020477,1723747431979,783.98,8.219e-05,2]
[335020478,1723747457732,332.9581254,9.926e-05,2]
[335020479,1723747512614,829.00575266,9.926e-05,2]
[335020480,1723747569644,150.0,9.888e-05,2]
[335020481,1723747608332,2525.29,9.667e-05,2]
[335020482,1723747643653,309.38389104,9.943e-05,2]
[335020483,1723747739309,10536.87882406,9.943e-05,2]
[335020484,1723747756427,23900.0,9.606e-05,2]
[335020485,1723747786729,250.0,9.606e-05,2]
[335020486,1723747788172,278.7,9.606e-05,2]
[335020487,1723747822946,10076.4422,9.888e-05,2]
[335020488,1723747826373,15487.19195063,9.943e-05,2]
[335020505,1723747832073,-300.0,9.987e-05,2]
[335020507,1723747832083,-198.6429475,0.0001,2]
[335020509,1723747832094,-351.3570525,0.0001,2]
[335020511,1723747832104,-156.65999809,0.0001,2]
[335020512,1723747832113,-150.0,0.00010008,2]
[335020513,1723747832123,-155.0,0.00010009,2]
[335020514,1723747832133,-213.38119034,0.00010009,2]
[335020515,1723747832144,-2628.48664866,0.00010009,2]
[335020516,1723747832155,-9581.27335134,0.00010026,2]
[335020517,1723747832167,-598.57128467,0.00010026,2]
[335020518,1723747832186,-1508.69661,0.00010026,2]
[335020519,1723747832197,-1262.51964852,0.00010026,2]
[335020520,1723747832208,-1015.81727259,0.00010026,2]
[335020521,1723747832218,-457.29170079,0.00010026,2]
[335020541,1723747838223,-528.87061222,0.00010009,2]
[335020545,1723747838236,-373.59450961,0.00010009,2]
[335020549,1723747838339,-172.52543754,0.00010009,2]
[335020550,1723747838349,-14275.54836705,0.00010026,2]
[335020551,1723747838359,-1139.43269238,0.00010026,2]
[335020552,1723747838369,-210.6709452,0.00010097,2]
[335020553,1723747838378,-164.42462269,0.00010097,2]
[335020554,1723747838388,-159.60847032,0.00010097,2]
[335020555,1723747838397,-155.17072618,0.00010097,2]
[335020556,1723747838410,-485.32685972,0.00010097,2]
[335020557,1723747838420,-155.0,0.00010097,2]
[335020558,1723747838431,-365.91742403,0.00010097,2]
[335020559,1723747838441,-800.0,0.000101,3]
[335020560,1723747838451,-1700.0,0.000102,3]
[335020561,1723747838461,-352.6593,0.0001029,2]
[335020562,1723747838470,-4148.35,0.0001029,2]
[335020563,1723747838480,-322.02,0.0001029,2]
[335020564,1723747838490,-2600.0,0.000103,3]
[335020565,1723747838501,-60524.6144839,0.0001039,2]
[335020566,1723747838510,-3400.0,0.000104,3]
[335020567,1723747838520,-911.38,0.000104,2]
[335020568,1723747838529,-51093.3,0.000104,2]
[335020569,1723747838539,-999.99,0.000104,2]
[335020570,1723747838549,-1000.0,0.00010405,2]
[335020571,1723747838558,-2500.0,0.00010405,2]
[335020572,1723747838568,-4491.2,0.00010405,2]
[335020573,1723747838577,-163.6,0.00010405,2]
[335020574,1723747838588,-783.98,0.00010463,2]
[335020575,1723747838597,-299.99,0.00010463,2]
[335020576,1723747838607,-5405.29278811,0.00010471,2]
[335020577,1723747838616,-155.0,0.00010471,2]
[335020578,1723747838626,-7000.0,0.00010471,2]
[335020579,1723747838635,-2112.46328814,0.00010471,2]
[335020580,1723747838645,-432.47832469,0.00010471,2]
[335020581,1723747838659,-203.41395605,0.00010471,2]
[335020582,1723747838668,-1257.62857871,0.00010471,2]
[335020583,1723747838678,-3938.23438566,0.00010471,2]
[335020584,1723747838688,-1081.78,0.00010499,2]
[335020585,1723747838701,-150.99,0.00010499,2]
[335020586,1723747838710,-3101.93,0.00010499,2]
[335020587,1723747838720,-599.48,0.000105,2]
[335020588,1723747838730,-499.99,0.000105,2]
[335020594,1723747838925,-499.99,0.000105,2]
[335020595,1723747838940,-150.99,0.000105,2]
[335020596,1723747838950,-5321.19,0.000105,2]
[335020597,1723747838961,-4300.0,0.000105,3]
[335020598,1723747838970,-155.0,0.00010505,2]
[335020599,1723747838980,-1298.58278501,0.00010566,2]
[335020600,1723747838993,-2502.58566001,0.00010566,2]
[335020601,1723747839004,-1725.0,0.00010566,2]
[335020602,1723747839015,-1739.57017204,0.00010566,2]
[335020603,1723747839024,-2386.8149171,0.00010566,2]
[335020604,1723747839035,-11792.196,0.00010596,2]
[335020605,1723747839047,-11506.2159,0.000106,2]
[335020606,1723747839058,-705.5862,0.000106,2]
[335020608,1723747839067,-5583.0098,0.000106,2]
[335020610,1723747839076,-800.0,0.000106,3]
[335020612,1723747839086,-529.01492508,0.00010699,2]
[335020614,1723747839096,-760.3907085,0.00010699,2]
[335020616,1723747839106,-800.0,0.000107,3]
[335020619,1723747839118,-364.3739,0.0001078,2]
[335020621,1723747839128,-2104.6987,0.0001078,2]
[335020623,1723747839138,-20853.011,0.0001078,2]
[335020625,1723747839150,-359.88808667,0.00010792,2]
[335020627,1723747839159,-649.86351287,0.00010799,2]
[335020629,1723747839169,-1578.72205212,0.000108,2]
[335020631,1723747839178,-290.5104,0.000108,2]
[335020633,1723747839187,-11474.6866,0.000108,2]
[335020635,1723747839197,-1269.4694,0.000108,2]
[335020637,1723747839206,-401.51974171,0.000108,2]
[335020639,1723747839216,-800.0,0.000108,3]
[335020641,1723747839226,-359.88808664,0.00010819,2]
[335020643,1723747839235,-359.88808664,0.00010846,2]
[335020645,1723747839243,-802.37415229,0.00010852,2]
[335020647,1723747839254,-328.33768382,0.00010861,2]
[335020649,1723747839264,-155.0,0.00010861,2]
[335020651,1723747839274,-270.62814649,0.00010861,2]
[335020653,1723747839284,-628.81776627,0.00010861,2]
[335020655,1723747839293,-155.0,0.00010861,2]
[335020657,1723747839302,-347.79523898,0.00010861,2]
[335020659,1723747839311,-255.19609183,0.00010862,2]
[335020661,1723747839320,-155.0,0.00010862,2]
[335020663,1723747839330,-218.91005949,0.00010862,2]
[335020665,1723747839339,-236.34424982,0.00010862,2]
[335020667,1723747839349,-493.73403565,0.00010862,2]
[335020669,1723747839358,-197.1386879,0.00010862,2]
[335020671,1723747839369,-155.0,0.00010862,2]
[335020673,1723747839378,-155.0,0.00010862,2]
[335020675,1723747839387,-164.40260801,0.00010862,2]
[335020677,1723747839397,-155.0,0.00010862,2]
[335020679,1723747839411,-367.98538424,0.00010862,2]
[335020681,1723747839427,-359.88808664,0.00010873,2]
[335020684,1723747839437,-87462.2827,0.0001088,2]
[335020685,1723747839447,-2962.7443,0.0001088,2]
[335020688,1723747839457,-10198.056,0.0001088,2]
[335020689,1723747839467,-9989.9818,0.0001088,2]
[335020692,1723747839476,-3000.0,0.0001088,2]
[335020694,1723747839486,-486.24581662,0.0001088,2]
[335020696,1723747839495,-155.0,0.00010888,2]
[335020698,1723747839505,-600.70924328,0.00010888,2]
[335020700,1723747839514,-380.32741541,0.00010888,2]